Cogmind - Beta 12 @@@ ROGUE MODE // 2023.04.05 @ 19:23:27 Player: ILikeMonsters1890 Result: Destroyed by H-77 Assassin with Coil Gun Performance ------------- Evolutions (7) 3500 Regions Visited (25) 5000 Robots Destroyed (185) 925 Value Destroyed (6903) 6903 Prototype IDs (38) 760 Alien Tech Used (3) 600 Bonus (3260) 3260 TOTAL SCORE: 20948 Bonus ------- High Alert Combat Kills 578 Follower Combat Kills 929 Met Data Miner 300 Met Zhirov 300 Met Warlord at Base 500 MAIN.C Attacked Warlord 500 Warlord Defense Kills 258 Friendly Fire -105 Cogmind --------- Core Integrity 0/1300 Matter 185/300 Energy 59/100 System Corruption 16% Temperature Cool (0) Movement Core (50) Location -3/Research Parts ------- > --- POWER (2) -------- (None) > --- PROPULSION (4) --- (None) > --- UTILITY (11) ----- Enhanced Optical Array Advanced Signal Interpreter Advanced Targeting Computer > --- WEAPON (4) ------- Power Sword > --- INVENTORY (5) ---- Advanced Hacking Suite Improved System Shield System Purifier Peak State ------------ > --- POWER ------------ Particle-Chain Reactor > --- PROPULSION ------- Treaded Biometal Exoskeleton > --- UTILITY ---------- Armored Scrap Engine Experimental Cooling System Medium Storage Unit Enhanced Optical Array Advanced Signal Interpreter Seismic Detector Advanced Targeting Computer Experimental Phase Shifter Hardened Medium Armor Plating Centrium Medium Armor Plating > --- WEAPON ----------- Long-range Missile Launcher Spread KE Phase Construct/C > --- INVENTORY -------- Seismic Detector Advanced ECM Suite Advanced Reaction Control System Advanced Hacking Suite Improved System Shield System Purifier Transdimensional Reconstructor Heavy Rocket Launcher Plasma Sword [Rating: 138] Favorites ----------- Power Constructs Engine Ion Engine Reactor Constructs Propulsion Constructs Treads Constructs Leg Aluminum Leg Wheel Armored Wheel Hover Unit Antigrav Array Utility Medium Storage Unit Device Armored Scrap Engine Storage Medium Storage Unit Processor Enhanced Optical Array Protection Centrium Medium Armor Plating Weapon Constructs Energy Gun Small Laser Energy Cannon Constructs Ballistic Gun Heavy Assault Rifle Ballistic Cannon Slug Cannon Launcher Long-range Missile Launcher Slashing Weapon Plasma Sword Build | -11 -10 -9 -9 -9 -7 -7 -7 -7 -6 -6 -6 -6 -6 -6 -5 -5 -5 -5 -4 -4 -4 -4 -4 -3 -3 ------- Run | Jun Mat Mat Sto Rec Fac Low Low Dat Pro Fac Ext Cet Arc Hub Fac Upp Upp Zhi Pro Fac Upp Upp War Pro Res Slots Evolved 14 | . . 2 . . 4 . . . . 2 . . . . 2 . . . . 2 . . . . 2 Power 1 | . . . . . . . . . . . . . . . 1 . . . . . . . . . . Propulsion 2 | . . 1 . . 1 . . . . . . . . . . . . . . . . . . . . Utility 9 | . . 1 . . 1 . . . . 2 . . . . 1 . . . . 2 . . . . 2 Weapon 2 | . . . . . 2 . . . . . . . . . . . . . . . . . . . . Parts Attached 149 | 5 14 9 22 2 9 . 3 . 10 9 3 5 1 4 3 6 4 5 1 7 3 . 5 3 16 Power 7 | 1 2 . 3 1 . . . . . . . . . . . . . . . . . . . . . Engine 7 | 1 2 . 3 1 . . . . . . . . . . . . . . . . . . . . . Core . | . . . . . . . . . . . . . . . . . . . . . . . . . . Reactor . | . . . . . . . . . . . . . . . . . . . . . . . . . . Propulsion 14 | 2 5 2 4 . . . . . . . . . . . . . . . . . . . . . 1 Treads . | . . . . . . . . . . . . . . . . . . . . . . . . . . Leg . | . . . . . . . . . . . . . . . . . . . . . . . . . . Wheel 13 | 2 5 2 4 . . . . . . . . . . . . . . . . . . . . . . Hover 1 | . . . . . . . . . . . . . . . . . . . . . . . . . 1 Flight . | . . . . . . . . . . . . . . . . . . . . . . . . . . Utility 74 | 1 1 2 2 1 6 . 3 . 7 6 2 3 1 2 3 3 4 5 1 5 1 . 5 1 9 Device 33 | 1 . . . 1 1 . 1 . 3 4 . . . . 1 2 4 . . 2 1 . 4 1 7 Storage 8 | . 1 . 1 . . . . . 1 . . 1 . 1 . . . 1 . 1 . . . . 1 Processor 7 | . . 2 . . 1 . . . . 1 1 . . . 1 . . . . 1 . . . . . Hackware . | . . . . . . . . . . . . . . . . . . . . . . . . . . Protection 26 | . . . 1 . 4 . 2 . 3 1 1 2 1 1 1 1 . 4 1 1 . . 1 . 1 Artifact . | . . . . . . . . . . . . . . . . . . . . . . . . . . Weapon 54 | 1 6 5 13 . 3 . . . 3 3 1 2 . 2 . 3 . . . 2 2 . . 2 6 Energy Gun 2 | . 1 . 1 . . . . . . . . . . . . . . . . . . . . . . Energy Cannon . | . . . . . . . . . . . . . . . . . . . . . . . . . . Ballistic Gun 18 | 1 3 5 9 . . . . . . . . . . . . . . . . . . . . . . Ballistic Cannon 2 | . . . . . . . . . . 1 . . . . . 1 . . . . . . . . . Launcher 19 | . . . 3 . 2 . . . 2 1 . 2 . 2 . 1 . . . . 1 . . 1 4 Special Weapon . | . . . . . . . . . . . . . . . . . . . . . . . . . . Impact Weapon . | . . . . . . . . . . . . . . . . . . . . . . . . . . Slashing Weapon 13 | . 2 . . . 1 . . . 1 1 1 . . . . 1 . . . 2 1 . . 1 2 Piercing Weapon . | . . . . . . . . . . . . . . . . . . . . . . . . . . Special Melee Weapon . | . . . . . . . . . . . . . . . . . . . . . . . . . . Unidentified Prototypes 13 | . . . 1 . . . . . 1 1 . 1 . . . 1 . 3 . 1 . . 3 . 1 Parts Lost 52 | . 7 1 6 1 . . 2 . 2 . . 1 3 3 . . . . 1 . . . . 1 24 Power 8 | . 1 . 1 1 . . 1 . . . . 1 1 . . . . . . . . . . . 2 Propulsion 17 | . 3 1 3 . . . . . 1 . . . 1 3 . . . . . . . . . . 5 Utility 15 | . 1 . . . . . 1 . . . . . . . . . . . 1 . . . . 1 11 Weapon 12 | . 2 . 2 . . . . . 1 . . . 1 . . . . . . . . . . . 6 Highest Loss Streak 14 | . 7 1 2 1 . . 1 . 1 . . 1 3 2 . . . . 1 . . . . 1 14 To Critical Strikes 2 | . . . 1 1 . . . . . . . . . . . . . . . . . . . . . Average Slot Usage (%) 59 | . 87 95 99 55 50 53 50 46 44 51 57 58 56 45 51 53 58 58 58 63 63 63 63 62 51 Engine 2 | . 13 11 10 10 2 . . . . 1 1 . . . . . . . . . . . . . . Core 1 | . . . . . 3 7 4 . . 2 4 . . . 2 5 5 5 . . . . . . . Reactor 1 | . . . . . . . . . . . . 4 5 . 2 . . . 4 5 5 5 5 5 2 Wheel 5 | . 26 32 32 6 . . . . . . 5 4 . . . . . . 4 5 . . . . . Flight 1 | . . . . . . 7 7 7 7 2 . . . . . . . 2 . . 5 5 4 1 . Device 10 | . 5 . . 10 7 7 8 7 12 14 13 7 6 6 10 11 11 11 10 10 13 15 15 14 14 Storage 6 | . 14 11 11 11 7 7 7 7 7 6 6 6 6 6 5 5 5 5 5 5 5 5 5 5 3 Processor 7 | . . 17 15 . . . . . . 6 6 6 6 6 10 11 11 11 11 15 15 15 15 15 14 Protection 5 | . . . 6 . 6 7 5 7 2 4 6 11 13 13 5 5 5 5 5 9 6 5 4 5 5 Energy Cannon 3 | . . . . 3 7 7 7 7 7 4 1 1 6 6 3 4 . . . . . . 2 4 3 Ballistic Gun 2 | . 22 22 20 1 . . . . . . . . . . . . . . . . . . . . . Ballistic Cannon 1 | . . . . . . . . . . 1 4 4 . . 1 . 5 5 5 5 5 5 2 . . Slashing Weapon 2 | . 3 . . . 4 7 7 7 5 . 4 6 4 . . . 5 5 5 5 4 5 5 4 1 Naked Turns . | . . . . . . . . . . . . . . . . . . . . . . . . . . Heaviest Build 90 | 15 17 21 27 26 46 46 46 41 41 43 41 85 85 36 46 65 68 68 87 88 77 72 82 77 90 Greatest Support 124 | 26 26 36 42 55 54 35 35 35 35 52 48 118 118 55 63 124 124 124 103 103 103 92 117 79 60 Greatest Overweight (x) 11 | . . . . 5 1 1 1 1 1 1 1 1 1 11 3 . . . . . . . 1 1 2 Average Overweight (x) . | . . . . . . 1 . 1 . . . . . 1 . . . . . . . . . . . Largest Inventory Capacity 20 | 8 10 10 10 10 10 10 10 10 10 10 10 20 20 10 10 10 10 10 10 10 10 10 10 10 10 Average Capacity 10 | 8 8 10 10 10 10 10 10 10 10 10 10 12 20 10 10 10 10 10 10 10 10 10 10 10 8 Most Carried 10 | 6 10 10 10 10 10 9 9 9 10 10 10 10 9 10 10 10 10 10 10 10 10 10 10 10 10 Average Carried 8 | 3 6 9 9 6 9 8 8 9 9 9 8 9 9 9 8 9 9 9 9 8 9 10 10 9 7 Final Capacity 20 | 8 10 10 10 10 10 10 10 10 10 10 10 20 20 10 10 10 10 10 10 10 10 10 10 10 5 Final Carried 10 | 5 10 10 10 5 9 8 9 9 10 10 9 9 9 10 9 10 9 10 9 9 10 10 10 9 3 Scrap Engine Consumption 240 | . . . . 32 19 2 2 . 3 31 37 11 . 14 25 6 8 5 2 7 1 . 21 5 9 Constructs Created 7 | . . . . 2 1 . . . . 1 . 1 . 1 1 . . . . . . . . . . Constructs Modified 105 | . . . . 11 9 . 1 . . 15 16 5 1 1 9 7 3 1 4 2 2 . 9 5 4 Class Distribution -------------------- 71% | Construct 14% | Mutant 6% | Commander-Construct 3% | Skirmisher 3% | Scavenger-Mutant Dominant Class ---------------- Mutant | -10/Materials Mutant | -9/Materials Scavenger-Mutant | -9/Storage Construct | -9/Recycling Construct | -7/Factory Construct | -7/Lower Caves Construct | -7/Lower Caves Construct | -7/Data Miner Construct | -6/Proximity Caves Construct | -6/Factory Construct | -6/Extension Construct | -6/Cetus Construct | -6/Archives Mutant | -6/Hub_04(d) Skirmisher | -5/Factory Construct | -5/Upper Caves Construct | -5/Upper Caves Construct | -5/Zhirov Construct | -4/Proximity Caves Construct | -4/Factory Construct | -4/Upper Caves Construct | -4/Upper Caves Commander-Construct | -4/Warlord Construct | -3/Proximity Caves Construct | -3/Research Resources | -11 -10 -9 -9 -9 -7 -7 -7 -7 -6 -6 -6 -6 -6 -6 -5 -5 -5 -5 -4 -4 -4 -4 -4 -3 -3 ----------- Run | Jun Mat Mat Sto Rec Fac Low Low Dat Pro Fac Ext Cet Arc Hub Fac Upp Upp Zhi Pro Fac Upp Upp War Pro Res Matter Collected 3332 | 298 217 296 602 196 200 20 30 . 183 142 154 153 . 147 39 72 129 60 . 86 75 . 59 50 124 Remotely . | . . . . . . . . . . . . . . . . . . . . . . . . . . Salvage Created 8292 | 149 457 365 558 498 565 60 254 . 178 355 865 239 . 1031 359 112 286 336 145 355 278 . 81 58 708 Parts 384 | 13 22 26 43 24 32 2 5 . 9 22 32 14 . 39 18 11 11 1 . 9 11 . 2 10 28 Haulers Intercepted 7 | . 1 1 2 . . . . . . 1 . . . 1 1 . . . . . . . . . . Recyclers Shooed 14 | . 1 . . 5 1 . . . . 1 2 . . 1 . . . . . 1 . . . . 2 Parts Field Recycled . | . . . . . . . . . . . . . . . . . . . . . . . . . . Retrieved Matter . | . . . . . . . . . . . . . . . . . . . . . . . . . . Parts Self-Destructed 42 | . . . . . . 4 4 . 10 . . . . . . 2 11 . . . 2 . . 9 . Prevented 3 | . . . . . . . . . 2 . . . . . . . 1 . . . . . . . . Kills | -11 -10 -9 -9 -9 -7 -7 -7 -7 -6 -6 -6 -6 -6 -6 -5 -5 -5 -5 -4 -4 -4 -4 -4 -3 -3 ------- Run | Jun Mat Mat Sto Rec Fac Low Low Dat Pro Fac Ext Cet Arc Hub Fac Upp Upp Zhi Pro Fac Upp Upp War Pro Res Combat Hostiles Destroyed 146 | . 11 10 16 3 15 1 1 . 9 5 9 8 . 17 4 5 4 . . 2 4 . 2 5 15 Melee 8 | . 2 . . . . . . . 1 1 . . . . . . . . . . . . . 1 3 Guns 35 | . 9 10 13 3 . . . . . . . . . . . . . . . . . . . . . Cannons 52 | . . . . . 8 1 1 . 1 1 9 2 . 9 4 1 4 . . 2 . . 2 1 6 AOE 51 | . . . 3 . 7 . . . 7 3 . 6 . 8 . 4 . . . . 4 . . 3 6 Classes Destroyed 17 | 2 4 2 . 1 . 1 1 . 1 2 . . . 1 . 1 1 . . . . . . . . Worker 7 | . 1 1 . . . . . . . 2 . . . 2 . . . . . 1 . . . . . Builder 5 | . . . . 1 . . . . . 1 . . . . . . . . . . . . . . 3 Tunneler 6 | 3 1 2 . . . . . . . . . . . . . . . . . . . . . . . Hauler 7 | . 1 1 2 . . . . . . 1 . . . 1 1 . . . . . . . . . . Recycler 10 | 1 1 . . 2 1 . . . . . 2 . . 1 . . . . . 1 . . . . 1 Minesweeper 1 | . . . . . . . . . . . . . . . . . 1 . . . . . . . . Drone 3 | . . . . . . . . . 1 . . . . . . . . . . . . . . 2 . Watcher 3 | . . . . . . . . . . 2 . . . . . . . . . 1 . . . . . Swarmer 51 | . 5 4 7 . 8 . . . 3 3 . 3 . . . 4 . . . . 4 . 1 3 6 Grunt 51 | . 6 4 2 . 6 . . . 4 . 5 3 . 12 1 . 3 . . . . . . . 5 Duelist 2 | . . 1 . . . . . . . . . . . . . . . . . . . . . . 1 Sentry 23 | . . 1 7 3 1 . . . . 1 3 . . 3 1 . 1 . . 2 . . . . . Hunter 2 | . . . . . . 1 . . 1 . . . . . . . . . . . . . . . . Programmer 7 | . . . . . . . . . . 1 . . . 1 2 . . . . . . . . . 3 Heavy 1 | . . . . . . . . . . . . . . 1 . . . . . . . . . . . Behemoth 2 | . . . . . . . 1 . . . . . . . . . . . . . . . 1 . . Cetus Guard 2 | . . . . . . . . . . . . 2 . . . . . . . . . . . . . Thug 1 | . . . . . . . . . . . 1 . . . . . . . . . . . . . . Mutant 1 | . . . . . . . . . . . . . . . . 1 . . . . . . . . . Best Kill Streak 11 | 2 4 5 6 1 4 1 1 . 4 6 2 3 . 11 2 4 3 . . 2 4 . 1 3 11 Combat Bots Only 9 | . 3 4 5 1 4 1 1 . 4 3 2 3 . 9 2 4 3 . . 1 4 . 1 3 8 Max Kills in Single Turn 3 | 1 2 1 2 1 3 1 1 . 3 2 1 3 . 2 1 3 1 . . 1 3 . 1 3 3 Gunslinging 1 | . . . 1 . . . . . . . . . . . . . . . . . . . . . . Exploded 3 | . . . 2 . 3 . . . 3 2 . 3 . 2 . 3 . . . . 3 . . 3 3 Melee 1 | . 1 . . . . . . . 1 1 . . . . . . . . . . . . . 1 1 Uniques/NPCs Destroyed . | . . . . . . . . . . . . . . . . . . . . . . . . . . Combat | -11 -10 -9 -9 -9 -7 -7 -7 -7 -6 -6 -6 -6 -6 -6 -5 -5 -5 -5 -4 -4 -4 -4 -4 -3 -3 -------- Run | Jun Mat Mat Sto Rec Fac Low Low Dat Pro Fac Ext Cet Arc Hub Fac Upp Upp Zhi Pro Fac Upp Upp War Pro Res Damage Taken 14060 | . 788 416 956 354 557 21 534 . 473 365 440 559 747 902 257 43 181 . 288 291 53 . 65 605 5165 Core 2535 | . 183 94 198 83 52 . 176 . 33 49 34 70 20 141 59 15 19 . . 41 . . 11 25 1232 Absorbed by Shields 138 | . . . . . . . . . . . 78 . . . . . . . . . . . 60 . . Regen/Repaired (Parts) 2385 | . . . . 45 224 . 100 . 25 230 259 250 49 298 94 25 20 . . 155 . . 235 98 278 Core Remaining (%) 62 | 100 26 . . 6 . . . . 62 . . . . 63 . . . . 90 . . . . 93 . Volleys Fired 611 | 8 47 31 55 40 38 2 17 . 18 21 40 18 9 39 14 16 27 4 25 24 7 4 37 33 37 Largest 2 | 2 2 2 2 2 1 1 1 . 1 1 1 1 1 1 1 1 1 1 1 1 1 1 1 1 2 Hottest 308 | 40 60 46 46 116 174 174 244 . 244 162 71 71 71 71 106 231 231 137 137 180 180 180 100 265 308 Shots Fired 737 | 16 79 62 100 50 38 2 17 . 18 21 40 17 9 37 14 16 27 4 25 24 7 4 37 33 40 Gun 294 | 16 79 62 91 46 . . . . . . . . . . . . . . . . . . . . . Cannon 380 | . . . . 4 33 2 17 . 7 18 40 12 9 29 14 12 27 4 25 24 4 4 37 31 27 Launcher 63 | . . . 9 . 5 . . . 11 3 . 5 . 8 . 4 . . . . 3 . . 2 13 Special . | . . . . . . . . . . . . . . . . . . . . . . . . . . Kinetic 514 | 16 65 62 91 49 19 . . . . 8 28 10 . . 8 . 23 4 25 24 4 4 37 10 27 Thermal 135 | . 14 . . 1 14 2 17 . 7 7 12 2 9 29 6 12 . . . . . . . 3 . Explosive 63 | . . . 9 . 5 . . . 11 3 . 5 . 8 . 4 . . . . 3 . . 2 13 Electromagnetic 25 | . . . . . . . . . . 3 . . . . . . 4 . . . . . . 18 . Robot Hit Streak 16 | 3 10 10 16 9 13 1 5 . 4 6 14 2 . 11 1 2 4 6 3 12 4 2 5 2 8 Robot Miss Streak 7 | 3 4 4 2 4 3 1 5 . 4 3 3 7 . 2 3 1 4 . 2 1 2 1 2 4 2 Penetration Max . | . . . . . . . . . . . . . . . . . . . . . . . . . . Secondary Targets 2 | . . . 2 . . . . . . . . . . . . . . . . . . . . . . Max Gunslinging Chain 1 | . . . 1 . . . . . . . . . . . . . . . . . . . . . . Shots Hit Robots 441 | 8 59 42 73 34 27 2 15 . 10 13 30 7 . 26 5 4 8 4 3 16 4 2 9 5 35 Core Hits 299 | 4 25 19 28 12 21 1 5 . 17 16 21 14 . 31 4 7 3 3 2 4 7 . 2 5 48 Critical Kills 8 | . . . 1 . . . . . . . . 1 . 3 1 1 1 . . . . . . . . Critical Parts Destroyed 10 | . . . 1 . . . . . . . 2 1 . 4 1 . 1 . . . . . . . . Critical Strikes 33 | . . . 2 . . . . . . 1 4 3 . 9 2 1 2 . 2 4 1 . 1 . 1 Burn 1 | . . . . . . . . . . 1 . . . . . . . . . . . . . . . Destroy 24 | . . . 2 . . . . . . . 4 3 . 9 2 1 2 . . . . . 1 . . Blast 7 | . . . . . . . . . . . . . . . . . . . 2 4 1 . . . . Sever 1 | . . . . . . . . . . . . . . . . . . . . . . . . . 1 Melee Attacks 44 | . 22 . . . . 1 5 . 4 1 . . . . . . . . . . . . . 1 10 Impact . | . . . . . . . . . . . . . . . . . . . . . . . . . . Slashing 44 | . 22 . . . . 1 5 . 4 1 . . . . . . . . . . . . . 1 10 Piercing . | . . . . . . . . . . . . . . . . . . . . . . . . . . Sneak Attacks 4 | . 1 . . . . 1 . . 1 . . . . . . . . . . . . . . 1 . Combat Hostiles 2 | . . . . . . . . . 1 . . . . . . . . . . . . . . 1 . Follow-up Attacks . | . . . . . . . . . . . . . . . . . . . . . . . . . . Damage Inflicted 24495 | 120 725 666 1403 573 1649 125 1132 . 1332 1073 1993 1038 . 2623 464 450 788 444 314 1604 768 213 496 588 3914 Guns 2855 | 120 512 666 1064 493 . . . . . . . . . . . . . . . . . . . . . Cannons 12636 | . . . . 80 1093 55 820 . 127 469 1993 397 . 1364 464 87 788 444 314 1604 321 213 496 105 1402 Explosions 7814 | . . . 319 . 556 . . . 1141 555 . 641 . 1259 . 363 . . . . 447 . . 374 2159 Melee 1105 | . 212 . . . . 70 312 . 64 49 . . . . . . . . . . . . . 109 289 Ramming 85 | . 1 . 20 . . . . . . . . . . . . . . . . . . . . . 64 Kinetic 11545 | 120 432 666 1064 573 555 . . . . 282 1616 335 . . 320 . 788 444 314 1604 321 213 496 . 1402 Thermal 4148 | . 80 . . . 538 55 820 . 127 389 377 62 . 1364 144 87 . . . . . . . 105 . Explosive 7612 | . . . 319 . 556 . . . 1141 353 . 641 . 1259 . 363 . . . . 447 . . 374 2159 Electromagnetic . | . . . . . . . . . . . . . . . . . . . . . . . . . . Impact . | . . . . . . . . . . . . . . . . . . . . . . . . . . Slashing 1105 | . 212 . . . . 70 312 . 64 49 . . . . . . . . . . . . . 109 289 Piercing . | . . . . . . . . . . . . . . . . . . . . . . . . . . Highest Corruption 16 | . . . . . . . . . . 4 7 7 7 8 2 2 2 2 4 5 5 5 5 3 16 Average Corruption 4 | . . . . . . . . . . 4 6 7 7 7 1 2 2 2 2 5 5 5 5 1 11 Corruption Purged . | . . . . . . . . . . . . . . . . . . . . . . . . . . Corruption Blocked . | . . . . . . . . . . . . . . . . . . . . . . . . . . Effects 107 | . . . . . . . . . . 4 29 13 3 15 6 6 3 3 3 3 3 4 2 . 10 Message Errors 24 | . . . . . . . . . . 3 6 2 . 3 1 . 2 1 2 . . 1 . . 3 Matter Fused 24 | . . . . . . . . . . . 10 3 1 1 1 3 1 . . 1 . 1 . . 2 Heat Flow Errors 16 | . . . . . . . . . . . 2 4 . 3 . 2 . 2 . . 1 2 . . . Energy Discharges 16 | . . . . . . . . . . 1 6 2 1 . 1 . . . 1 1 1 . 1 . 1 Parts Rejected 2 | . . . . . . . . . . . . . 1 1 . . . . . . . . . . . Parts Fused 2 | . . . . . . . . . . . 1 . . 1 . . . . . . . . . . . Data Loss (minor) 13 | . . . . . . . . . . . 3 . . 4 3 . . . . 1 . . . . 2 Data Loss (major) 3 | . . . . . . . . . . . 1 1 . . . . . . . . 1 . . . . Alerts 2 | . . . . . . . . . . . . . . . . 1 . . . . . . 1 . . Misdirections 1 | . . . . . . . . . . . . . . . . . . . . . . . . . 1 Weapon Failures 4 | . . . . . . . . . . . . 1 . 2 . . . . . . . . . . 1 Overload Shots . | . . . . . . . . . . . . . . . . . . . . . . . . . . Overflow Damage 2261 | . 13 . 21 . 186 30 18 . 64 64 93 20 . 61 68 7 198 114 55 265 111 86 6 154 627 Projectiles 1806 | . . . . . 186 . . . . . 93 . . 57 68 . 198 114 55 265 100 86 6 75 503 Explosions 291 | . . . 21 . . . . . 40 64 . 20 . 4 . 7 . . . . 11 . . . 124 Melee 164 | . 13 . . . . 30 18 . 24 . . . . . . . . . . . . . . 79 . Knockbacks 24 | . . . . . 2 . . . . 1 6 . . . . . 2 . 1 2 . 2 . . 8 Impact . | . . . . . . . . . . . . . . . . . . . . . . . . . . Kinetic 22 | . . . . . 2 . . . . 1 6 . . . . . 2 . 1 2 . 2 . . 6 Secondary 2 | . . . . . . . . . . . . . . . . . . . . . . . . . 2 Self-Inflicted Damage 999 | . . . 49 . 38 . . . 25 175 . . . 115 . . . . . 173 . . . 1 423 Shots 20 | . . . 2 . 1 . . . 1 2 . . . 3 . . . . . 2 . . . 1 8 Rammed 8 | . 1 . 1 . . . . . . . . . . . . . . . . . . . . . 6 Targets Rammed 8 | . 1 . 1 . . . . . . . . . . . . . . . . . . . . . 6 Kicked . | . . . . . . . . . . . . . . . . . . . . . . . . . . Crushed . | . . . . . . . . . . . . . . . . . . . . . . . . . . Highest Temperature 512 | . 20 7 49 163 240 151 401 . 512 213 239 175 70 160 242 366 318 209 181 315 213 247 8 332 204 Average Temperature 82 | . 9 6 16 25 92 82 138 . 204 59 48 59 37 42 90 119 108 90 89 117 93 108 2 79 78 Received Heat Transfer 2438 | . 168 96 300 135 219 . 48 . 111 24 129 144 144 291 18 . 63 . 9 18 . . 10 18 493 Effects 7 | . . . . . . . 1 . 3 . . . . . . 1 1 . . 1 . . . . . Energy Bleed 5 | . . . . . . . 1 . 1 . . . . . . 1 1 . . 1 . . . . . Interference 2 | . . . . . . . . . 2 . . . . . . . . . . . . . . . . Siege Activations . | . . . . . . . . . . . . . . . . . . . . . . . . . . Robots Corrupted . | . . . . . . . . . . . . . . . . . . . . . . . . . . Combat Hostiles . | . . . . . . . . . . . . . . . . . . . . . . . . . . Parts Fried . | . . . . . . . . . . . . . . . . . . . . . . . . . . Impact Corruptions 3 | . . . 1 . . . . . . . . . . . . . . . . . . . . . 2 Robots Melted . | . . . . . . . . . . . . . . . . . . . . . . . . . . Combat Hostiles . | . . . . . . . . . . . . . . . . . . . . . . . . . . Parts Melted 2 | . . . . . . . . . . 1 . . . 1 . . . . . . . . . . . Heat Transferred 2891 | . 175 . . . 433 37 444 . 74 322 481 37 . 740 74 37 . . . . . . . 37 . Parts Sabotaged 2 | . . . . . . . . . . . . . . . . . . . . . . . . . 2 Parts Stolen . | . . . . . . . . . . . . . . . . . . . . . . . . . . Parts Stripped . | . . . . . . . . . . . . . . . . . . . . . . . . . . Power Chain Reactions . | . . . . . . . . . . . . . . . . . . . . . . . . . . Missiles Intercepted . | . . . . . . . . . . . . . . . . . . . . . . . . . . Alert | -11 -10 -9 -9 -9 -7 -7 -7 -7 -6 -6 -6 -6 -6 -6 -5 -5 -5 -5 -4 -4 -4 -4 -4 -3 -3 ------- Run | Jun Mat Mat Sto Rec Fac Low Low Dat Pro Fac Ext Cet Arc Hub Fac Upp Upp Zhi Pro Fac Upp Upp War Pro Res Peak Influence 859 | 20 255 367 448 209 296 . . . . 536 516 614 307 703 461 . . . . 219 . . . . 859 Initial 344 | . 13 54 25 174 . . . . . 313 189 252 245 96 344 . . . . . . . . . 300 Average 270 | 8 132 236 288 78 126 . . . . 346 298 464 276 475 307 . . . . 133 . . . . 540 Maximum Alert Level 3 | . 1 1 2 1 1 . . . . 2 2 2 1 3 2 . . . . 1 . . . . 3 Low Security (%) 33 | 100 80 27 13 80 78 . . . . 1 16 . . 14 7 . . . . 80 . . . . . Level 1 49 | . 19 72 63 19 21 . . . . 88 56 31 100 28 87 . . . . 19 . . . . 43 Level 2 14 | . . . 22 . . . . . . 10 27 68 . 34 5 . . . . . . . . . 22 Level 3 3 | . . . . . . . . . . . . . . 22 . . . . . . . . . . 34 Level 4 . | . . . . . . . . . . . . . . . . . . . . . . . . . . Level 5 . | . . . . . . . . . . . . . . . . . . . . . . . . . . High Security . | . . . . . . . . . . . . . . . . . . . . . . . . . . Max Security . | . . . . . . . . . . . . . . . . . . . . . . . . . . Squads Dispatched 25 | . 2 2 2 . 3 . . . . 3 1 . . 4 2 . . . . . . . . . 6 Investigation 7 | . 1 1 1 . 1 . . . . . . . . 2 . . . . . . . . . . 1 Extermination 4 | . . . . . . . . . . 1 . . . 1 1 . . . . . . . . . 1 Reinforcement 13 | . 1 1 1 . 2 . . . . 2 1 . . 1 1 . . . . . . . . . 3 Assault 1 | . . . . . . . . . . . . . . . . . . . . . . . . . 1 Garrison . | . . . . . . . . . . . . . . . . . . . . . . . . . . Intercept . | . . . . . . . . . . . . . . . . . . . . . . . . . . Searches Triggered . | . . . . . . . . . . . . . . . . . . . . . . . . . . Data Miner Redirects 1 | . . . . . . . . . . . . . . 1 . . . . . . . . . . . Construction Impeded 3 | . . . 1 . . . . . . . . . . . . . . . . . . . . . 2 Haulers Reinforced 2 | . . . . . 1 . . . . 1 . . . . . . . . . . . . . . . Active Scanning Responses . | . . . . . . . . . . . . . . . . . . . . . . . . . . Cargo Convoy Interrupts . | . . . . . . . . . . . . . . . . . . . . . . . . . . Stealth | -11 -10 -9 -9 -9 -7 -7 -7 -7 -6 -6 -6 -6 -6 -6 -5 -5 -5 -5 -4 -4 -4 -4 -4 -3 -3 --------- Run | Jun Mat Mat Sto Rec Fac Low Low Dat Pro Fac Ext Cet Arc Hub Fac Upp Upp Zhi Pro Fac Upp Upp War Pro Res Distress Signals 12 | . 1 1 2 . 1 . . . . 1 . 1 . . . . . . . 1 . . . . 4 Communications Jammed 5 | . . . . . . . . . . . 5 . . . . . . . . . . . . . . Distress Signals 5 | . . . . . . . . . . . 5 . . . . . . . . . . . . . . Times Spotted 264 | . 18 16 19 3 17 1 1 . 14 10 16 13 4 21 5 5 5 . 1 6 4 . 28 9 48 Peak Tracking Total 13 | . 6 7 6 1 4 1 1 . 6 4 3 4 4 8 2 4 3 . 1 3 4 . 13 3 12 Tactical Retreats 16 | . 3 3 1 . . . . . 2 . . . . 1 . . 1 . . . . . . . 5 Traps | -11 -10 -9 -9 -9 -7 -7 -7 -7 -6 -6 -6 -6 -6 -6 -5 -5 -5 -5 -4 -4 -4 -4 -4 -3 -3 ------- Run | Jun Mat Mat Sto Rec Fac Low Low Dat Pro Fac Ext Cet Arc Hub Fac Upp Upp Zhi Pro Fac Upp Upp War Pro Res Traps Triggered 13 | . . 2 1 . . . . . . 2 6 . . 1 . . . . . . . . . . 1 Indirectly . | . . . . . . . . . . . . . . . . . . . . . . . . . . Trap Hack Attempts . | . . . . . . . . . . . . . . . . . . . . . . . . . . Triggered . | . . . . . . . . . . . . . . . . . . . . . . . . . . Disarmed . | . . . . . . . . . . . . . . . . . . . . . . . . . . Reprogrammed . | . . . . . . . . . . . . . . . . . . . . . . . . . . Reused . | . . . . . . . . . . . . . . . . . . . . . . . . . . Traps Extracted . | . . . . . . . . . . . . . . . . . . . . . . . . . . Installed . | . . . . . . . . . . . . . . . . . . . . . . . . . . Triggered 12 | . . . . . . 4 . . 2 . . . . . . . 1 . . . . . 5 . . Machines | -11 -10 -9 -9 -9 -7 -7 -7 -7 -6 -6 -6 -6 -6 -6 -5 -5 -5 -5 -4 -4 -4 -4 -4 -3 -3 ---------- Run | Jun Mat Mat Sto Rec Fac Low Low Dat Pro Fac Ext Cet Arc Hub Fac Upp Upp Zhi Pro Fac Upp Upp War Pro Res Machines Disabled 36 | . . . 5 . 4 . . . . 6 2 2 1 4 . 1 3 1 . 2 . . 4 . 1 Max in Single Turn 6 | . . . 1 . 2 . . . . 6 . 1 1 2 . 1 2 1 . 2 . . 1 . 1 Garrison Access 3 | . . . . . . . . . . 2 . . . . . . . . . . . . . . 1 Machines Repaired . | . . . . . . . . . . . . . . . . . . . . . . . . . . Machines Sabotaged . | . . . . . . . . . . . . . . . . . . . . . . . . . . Overloaded Fab Kills . | . . . . . . . . . . . . . . . . . . . . . . . . . . Hacking | -11 -10 -9 -9 -9 -7 -7 -7 -7 -6 -6 -6 -6 -6 -6 -5 -5 -5 -5 -4 -4 -4 -4 -4 -3 -3 --------- Run | Jun Mat Mat Sto Rec Fac Low Low Dat Pro Fac Ext Cet Arc Hub Fac Upp Upp Zhi Pro Fac Upp Upp War Pro Res Machines Accessed 49 | . 6 3 3 4 5 . 1 3 . 6 1 . . 2 2 2 1 5 . 1 . . 1 1 2 Terminals 25 | . 6 2 3 3 3 . . . . 2 1 . . 2 1 . . . . 1 . . . 1 . Fabricators 1 | . . . . . . . . . . 1 . . . . . . . . . . . . . . . Repair Stations 1 | . . 1 . . . . . . . . . . . . . . . . . . . . . . . Recycling Units 4 | . . . . 1 1 . . . . 1 . . . . 1 . . . . . . . . . . Scanalyzers . | . . . . . . . . . . . . . . . . . . . . . . . . . . Garrison Access 5 | . . . . . 1 . . . . 2 . . . . . . . . . . . . . . 2 Total Hacks 123 | . 12 10 12 8 9 . 1 21 . 12 1 . . 4 6 2 1 18 . 2 . . 1 1 2 Successful 72 | . 6 4 5 1 2 . 1 21 . 5 . . . . 3 2 1 18 . 1 . . 1 1 . Failed 51 | . 6 6 7 7 7 . . . . 7 1 . . 4 3 . . . . 1 . . . . 2 Catastrophic 19 | . 2 2 2 2 5 . . . . 1 1 . . 2 1 . . . . . . . . . 1 Database Lockouts . | . . . . . . . . . . . . . . . . . . . . . . . . . . Manual 23 | . 5 4 6 4 1 . . . . . . 2 . . . . . . . . . . 1 . . Terminals 58 | . 12 8 12 7 4 . . . . 4 1 . . 4 3 . . . . 2 . . . 1 . Fabricators 2 | . . . . . . . . . . 2 . . . . . . . . . . . . . . . Repair Stations 2 | . . 2 . . . . . . . . . . . . . . . . . . . . . . . Recycling Units 8 | . . . . 1 3 . . . . 1 . . . . 3 . . . . . . . . . . Scanalyzers . | . . . . . . . . . . . . . . . . . . . . . . . . . . Garrison Access 9 | . . . . . 2 . . . . 5 . . . . . . . . . . . . . . 2 Terminal Hacks 66 | . 6 4 5 1 1 . 1 21 . 1 . . . . 2 2 1 18 . 1 . . 1 1 . Record 11 | . . . . . . . . 3 . . . . . . . 1 . 6 . . . . . 1 . Part Schematic 14 | . . . . . . . . 10 . . . . . . . . . 4 . . . . . . . Robot Schematic 5 | . . . . . . . . 5 . . . . . . . . . . . . . . . . . Robot Analysis 4 | . . . . . . . . . . . . . . . . . . 4 . . . . . . . Prototype ID Bank 10 | . 1 . 1 1 . . . 3 . . . . . . . . . 4 . . . . . . . Open Door 5 | . . . 1 . . . 1 . . . . . . . . 1 1 . . . . . 1 . . Branch Access Points 5 | . 1 1 1 . . . . . . 1 . . . . . . . . . 1 . . . . . Alert Level 2 | . 1 . . . . . . . . . . . . . 1 . . . . . . . . . . Unreport Threat 1 | . . 1 . . . . . . . . . . . . . . . . . . . . . . . Locate Traps 4 | . 2 . . . 1 . . . . . . . . . 1 . . . . . . . . . . Zone Layout 5 | . 1 2 2 . . . . . . . . . . . . . . . . . . . . . . Fabricator Hacks 1 | . . . . . . . . . . 1 . . . . . . . . . . . . . . . Network Status 1 | . . . . . . . . . . 1 . . . . . . . . . . . . . . . Repair Station Hacks . | . . . . . . . . . . . . . . . . . . . . . . . . . . Recycling Unit Hacks 3 | . . . . . 1 . . . . 1 . . . . 1 . . . . . . . . . . Retrieve Components 3 | . . . . . 1 . . . . 1 . . . . 1 . . . . . . . . . . Scanalyzer . | . . . . . . . . . . . . . . . . . . . . . . . . . . Garrison Access Hacks 2 | . . . . . . . . . . 2 . . . . . . . . . . . . . . . Seal Access 2 | . . . . . . . . . . 2 . . . . . . . . . . . . . . . Unauthorized Hacks . | . . . . . . . . . . . . . . . . . . . . . . . . . . Terminals . | . . . . . . . . . . . . . . . . . . . . . . . . . . Fabricators . | . . . . . . . . . . . . . . . . . . . . . . . . . . Repair Stations . | . . . . . . . . . . . . . . . . . . . . . . . . . . Recycling Units . | . . . . . . . . . . . . . . . . . . . . . . . . . . Scanalyzers . | . . . . . . . . . . . . . . . . . . . . . . . . . . Garrison Access . | . . . . . . . . . . . . . . . . . . . . . . . . . . Data Cores Recovered . | . . . . . . . . . . . . . . . . . . . . . . . . . . Used . | . . . . . . . . . . . . . . . . . . . . . . . . . . Hacking Detections 34 | . 6 3 3 4 5 . . . . 5 1 . . 2 2 . . . . 1 . . . . 2 Full Trace Events 3 | . 1 . . . 1 . . . . . . . . 1 . . . . . . . . . . . Feedback Events . | . . . . . . . . . . . . . . . . . . . . . . . . . . Feedback Blocked . | . . . . . . . . . . . . . . . . . . . . . . . . . . Robot Schematics Acquired 5 | . . . . . . . . 5 . . . . . . . . . . . . . . . . . Robots Built . | . . . . . . . . . . . . . . . . . . . . . . . . . . Authchips . | . . . . . . . . . . . . . . . . . . . . . . . . . . Time . | . . . . . . . . . . . . . . . . . . . . . . . . . . Total Robot Build Rating . | . . . . . . . . . . . . . . . . . . . . . . . . . . Part Schematics Acquired 14 | . . . . . . . . 10 . . . . . . . . . 4 . . . . . . . Parts Built . | . . . . . . . . . . . . . . . . . . . . . . . . . . Authchips . | . . . . . . . . . . . . . . . . . . . . . . . . . . Time . | . . . . . . . . . . . . . . . . . . . . . . . . . . Total Part Build Rating . | . . . . . . . . . . . . . . . . . . . . . . . . . . Parts Repaired . | . . . . . . . . . . . . . . . . . . . . . . . . . . Time . | . . . . . . . . . . . . . . . . . . . . . . . . . . Parts Recycled . | . . . . . . . . . . . . . . . . . . . . . . . . . . Recycled Matter . | . . . . . . . . . . . . . . . . . . . . . . . . . . Retrieved Matter . | . . . . . . . . . . . . . . . . . . . . . . . . . . Retrieved Components 8 | . . . . . 2 . . . . 3 . . . . 3 . . . . . . . . . . Parts Scanalyzed . | . . . . . . . . . . . . . . . . . . . . . . . . . . Part Schematics Acquired . | . . . . . . . . . . . . . . . . . . . . . . . . . . Parts Damaged . | . . . . . . . . . . . . . . . . . . . . . . . . . . Bothacking | -11 -10 -9 -9 -9 -7 -7 -7 -7 -6 -6 -6 -6 -6 -6 -5 -5 -5 -5 -4 -4 -4 -4 -4 -3 -3 ------------ Run | Jun Mat Mat Sto Rec Fac Low Low Dat Pro Fac Ext Cet Arc Hub Fac Upp Upp Zhi Pro Fac Upp Upp War Pro Res Used RIF Installer . | . . . . . . . . . . . . . . . . . . . . . . . . . . Robots Hacked . | . . . . . . . . . . . . . . . . . . . . . . . . . . Non-combat . | . . . . . . . . . . . . . . . . . . . . . . . . . . Combat . | . . . . . . . . . . . . . . . . . . . . . . . . . . Robot Hacks Applied . | . . . . . . . . . . . . . . . . . . . . . . . . . . Relay Couplers Released 1 | . . . . . . . . . . . . . . . . . . . . . . . . . 1 Machine Destruction 1 | . . . . . . . . . . . . . . . . . . . . . . . . . 1 Fabnet Peak Effective % . | . . . . . . . . . . . . . . . . . . . . . . . . . . Robots Rewired 11 | . . . . . . . . . . . 6 . . . . . . . . . . . 5 . . Allies Hacked . | . . . . . . . . . . . . . . . . . . . . . . . . . . Hacks Repelled . | . . . . . . . . . . . . . . . . . . . . . . . . . . Allies | -11 -10 -9 -9 -9 -7 -7 -7 -7 -6 -6 -6 -6 -6 -6 -5 -5 -5 -5 -4 -4 -4 -4 -4 -3 -3 -------- Run | Jun Mat Mat Sto Rec Fac Low Low Dat Pro Fac Ext Cet Arc Hub Fac Upp Upp Zhi Pro Fac Upp Upp War Pro Res Total Allies 23 | . . . . . . . . . 1 . 17 . . . . . . . . . . . 5 . . Largest Group 9 | . . . . . . . . . 1 . 9 8 . . . . . . . . . . 5 . . Highest-Rated Group 436 | . . . . . . . . . 96 . 436 394 . . . . . . . . . . 285 . . Highest-Rated Ally 159 | . . . . . . . . . 96 . 159 143 . . . . . . . . . . 65 . . Total Orders 2 | . . . . . . . . . . . . . . . . . . . . . . . 2 . . STAY 2 | . . . . . . . . . . . . . . . . . . . . . . . 2 . . Ally Attacks 185 | . . . . . . . . . 4 . 80 55 . . . . . . . . . . 46 . . Total Damage 4325 | . . . . . . . . . 46 . 1671 1245 . . . . . . . . . . 1363 . . Kills 31 | . . . . . . . . . 1 . 15 11 . . . . . . . . . . 4 . . Allies Corrupted 2 | . . . . . . . . . . . . . . . . . . . . . . . 2 . . Allies Melted 2 | . . . . . . . . . . . . . . . . . . . . . . . 2 . . Intel | -11 -10 -9 -9 -9 -7 -7 -7 -7 -6 -6 -6 -6 -6 -6 -5 -5 -5 -5 -4 -4 -4 -4 -4 -3 -3 ------- Run | Jun Mat Mat Sto Rec Fac Low Low Dat Pro Fac Ext Cet Arc Hub Fac Upp Upp Zhi Pro Fac Upp Upp War Pro Res Robot Analysis Total 4 | . . . . . . . . . . . . . . . . . . 4 . . . . . . . Derelict Logs Recovered 7 | . . . . . . . 1 . . . . . . . . 2 . . 1 . 3 . . . . Drone Launches . | . . . . . . . . . . . . . . . . . . . . . . . . . . Drone Recoveries . | . . . . . . . . . . . . . . . . . . . . . . . . . . Exploration | -11 -10 -9 -9 -9 -7 -7 -7 -7 -6 -6 -6 -6 -6 -6 -5 -5 -5 -5 -4 -4 -4 -4 -4 -3 -3 ------------- Run | Jun Mat Mat Sto Rec Fac Low Low Dat Pro Fac Ext Cet Arc Hub Fac Upp Upp Zhi Pro Fac Upp Upp War Pro Res Turns Passed 12860 | 70 544 410 602 1201 689 223 662 103 244 904 1246 394 87 396 866 578 456 113 344 231 222 152 646 868 609 Spaces Moved 8865 | 36 353 322 416 361 803 165 370 79 227 698 537 138 34 150 470 359 430 171 409 258 340 318 645 349 427 Core 86 | . . . . 1 . . . . . . . . . 9 . . . . . . . . . . 76 Treads 1032 | . . . . 128 . . . . . . . 40 34 93 146 8 430 73 . . . . . . 80 Legs 668 | . . . . . . . . . . 43 . . . . 94 . . . . . . . 126 236 169 Wheels 2567 | 36 353 322 416 213 . . . . . . 449 98 . . 21 . . . 408 251 . . . . . Hover 1622 | . . . . 19 749 . . . . 362 . . . 48 23 333 . . . . . . . . 88 Flight 2890 | . . . . . 54 165 370 79 227 293 88 . . . 186 18 . 98 1 7 340 318 519 113 14 Fastest Speed 39 | 90 80 90 90 71 57 131 57 131 57 57 56 136 165 125 70 51 51 43 43 50 39 39 39 58 50 Average Speed 83 | 90 88 90 90 112 65 131 123 131 68 65 111 174 178 193 142 53 51 46 49 50 39 39 47 108 107 Slowest Speed 600 | 90 90 90 93 300 131 131 131 131 131 131 136 207 191 600 320 70 51 51 50 50 50 39 115 133 190 Overloaded Moves . | . . . . . . . . . . . . . . . . . . . . . . . . . . Propulsion Burnouts . | . . . . . . . . . . . . . . . . . . . . . . . . . . Robots Hopped 4 | . . . . . . . . . . . . . . . . . . . . . . . 4 . . Cave-ins Triggered 1 | . . . . . . . . . . . . . . . . . . . 1 . . . . . . Teleports 1 | . . . . . . . . . . . . . . . . . . . . . . . . . 1 Exploration Rate (%) 45 | 3 56 27 64 45 16 37 49 68 42 18 65 56 73 19 10 55 71 62 72 11 62 51 71 55 18 Regions Visited 25 Branch Regions 18 Pre-discovered Areas 6 | . . . . . . . . 1 . . . . . . . 1 . 3 . . 1 . . . . Known Exits Taken 14 | . . 1 1 . 1 . . . . 1 . . . . 1 1 1 1 1 1 1 1 1 1 . Unknown Exits Taken 11 | 1 1 . . 1 . 1 1 1 1 . 1 1 1 1 . . . . . . . . . . . Scrap Searched 15 | . . . . . . 2 3 . . . . . . . . . 4 . . . 2 1 . 3 . Spaces Dug 147 | . . . 6 . . . . . 3 4 13 . 1 . 1 9 2 . 34 9 2 . 35 24 4 Terrain Destroyed 838 | . . . 65 1 39 1 5 . 93 65 37 37 2 75 16 58 17 4 41 25 63 6 40 59 89 Melee 3 | . . . . . . . . . 3 . . . . . . . . . . . . . . . . Projectile 298 | . . . . 1 12 1 5 . 3 6 37 7 2 7 16 10 17 4 41 20 6 6 40 29 28 AOE 537 | . . . 65 . 27 . . . 87 59 . 30 . 68 . 48 . . . 5 57 . . 30 61 Terrain Rammed . | . . . . . . . . . . . . . . . . . . . . . . . . . . Walls Destroyed . | . . . . . . . . . . . . . . . . . . . . . . . . . . Machines Disabled . | . . . . . . . . . . . . . . . . . . . . . . . . . . Actions | -11 -10 -9 -9 -9 -7 -7 -7 -7 -6 -6 -6 -6 -6 -6 -5 -5 -5 -5 -4 -4 -4 -4 -4 -3 -3 --------- Run | Jun Mat Mat Sto Rec Fac Low Low Dat Pro Fac Ext Cet Arc Hub Fac Upp Upp Zhi Pro Fac Upp Upp War Pro Res Total 13504 | 57 473 384 552 1115 934 169 550 78 291 1128 1151 275 52 220 653 729 641 199 524 336 419 341 925 795 513 Wait 3496 | . 12 6 24 696 55 1 152 . 22 378 485 109 9 19 160 341 176 13 90 39 69 20 201 410 9 Move 8832 | 35 352 321 415 360 802 164 369 78 226 697 536 137 33 149 469 358 429 170 407 257 339 317 637 348 427 Hop 3 | . . . . . . . . . . . . . . . . . . . . . . . 3 . . Pick Up 106 | 4 15 8 15 2 16 . 3 . 4 10 6 1 . 4 3 3 2 1 . 4 1 . 1 . 3 Fast Attach 37 | 1 2 2 3 1 1 . . . . 2 1 2 1 1 1 3 . 6 . 2 . . 4 . 4 Attach 47 | . 5 2 6 1 3 . 2 . 2 4 . 2 . 2 1 2 . . 1 2 . . . 1 11 Detach 18 | . . . 1 2 2 . . . 2 2 . 2 . 2 . 1 . . . . . . 2 . 2 Swap 68 | 4 7 5 13 . 5 . 1 . 8 3 2 1 . 1 1 2 4 . . 3 3 . 1 2 2 Drop 126 | 5 10 9 19 13 12 1 1 . 5 10 8 3 . 3 4 3 3 5 . 5 . . 5 . 2 Fire 611 | 8 47 31 55 40 38 2 17 . 18 21 40 18 9 39 14 16 27 4 25 24 7 4 37 33 37 Melee 44 | . 22 . . . . 1 5 . 4 1 . . . . . . . . . . . . . 1 10 Ram 8 | . 1 . 1 . . . . . . . . . . . . . . . . . . . . . 6 Kick . | . . . . . . . . . . . . . . . . . . . . . . . . . . Crush . | . . . . . . . . . . . . . . . . . . . . . . . . . . Escape Stasis 25 | . . . . . . . . . . . 24 . . . . . . . 1 . . . . . . Rewire 83 | . . . . . . . . . . . 49 . . . . . . . . . . . 34 . . Trap . | . . . . . . . . . . . . . . . . . . . . . . . . . . Miscellaneous . | . . . . . . . . . . . . . . . . . . . . . . . . . . Route ------- -11/Junkyard -10/Materials (discovered 3 exits: *Mat / *Min x2) -9/Materials (discovered 3 exits: *Min x2 / *Sto) -9/Storage (discovered 2 exits: [*Mat] / *Rec) -9/Recycling -7/Factory (discovered 2 exits: *Fac / *Low) -7/Lower Caves -7/Lower Caves -7/Data Miner -6/Proximity Caves -6/Factory (discovered 4 exits: Low x2 / *Ext x2) -6/Extension (discovered 2 exits: *Fac / *Cet) -6/Cetus -6/Archives (discovered 2 exits: *Hub x2) -6/Hub_04(d) -5/Factory -5/Upper Caves -5/Upper Caves (discovered 2 exits: *Fac / *Zhi) -5/Zhirov -4/Proximity Caves -4/Factory (discovered 4 exits: *Res / *Upp x2 / Arm) -4/Upper Caves -4/Upper Caves -4/Warlord -3/Proximity Caves -3/Research (discovered 1 exit: Res) History --------- Turn | Location | Event 12 | -11/Junkyard | Discovered new exit (range 3) 71 | -11/Junkyard | Entered Materials 294 | -10/Materials | Core integrity fell below 50% 319 | -10/Materials | Build established: Mutant 331 | -10/Materials | Lost 7 parts (1p3n1u2w) 417 | -10/Materials | Discovered new exit (range 14) 421 | -10/Materials | Identified exit to Mines 571 | -10/Materials | Discovered new exit (range 15) 615 | -10/Materials | Entered another Materials area 615 | -9/Materials | Evolved 2 slots: Propulsion x1, Utility x1 616 | -9/Materials | Discovered new exit (range 15) 884 | -9/Materials | Discovered new exit (range 14) 934 | -9/Materials | Identified exit to Mines 934 | -9/Materials | Identified exit to Storage 1025 | -9/Materials | Entered Storage 1215 | -9/Storage | Core integrity fell below 50% 1462 | -9/Storage | Discovered new exit (range 9) 1543 | -9/Storage | Build established: Scavenger-Mutant 1595 | -9/Storage | Identified exit to Recycling 1623 | -9/Storage | Used back door to open Recycling access 1627 | -9/Storage | Entered Recycling 1686 | -9/Recycling | Found Scrap Engine 2066 | -9/Recycling | Build established: Construct 2211 | -9/Recycling | Core integrity fell below 20% 2460 | -9/Recycling | Discovered new exit (range 15) 2828 | -9/Recycling | Entered Factory 2828 | -7/Factory | Evolved 4 slots: Propulsion x1, Utility x1, Weapon x2 2873 | -7/Factory | Discovered new exit (range 10) 3034 | -7/Factory | Discovered new exit (range 16) 3496 | -7/Factory | Identified exit to Lower Caves 3517 | -7/Factory | Entered Lower Caves 3722 | -7/Lower Caves | Discovered new exit (range 15) 3740 | -7/Lower Caves | Entered another Lower Caves area 4126 | -7/Lower Caves | Spotted B-75 Beast 4255 | -7/Lower Caves | Destroyed B-75 Beast 4297 | -7/Lower Caves | Learned Factory interactive machine intel 4325 | -7/Lower Caves | Discovered new exit (range 9) 4402 | -7/Lower Caves | Entered Data Miner 4402 | -7/Data Miner | Discovered new exit (range 6) 4427 | -7/Data Miner | Met Data Miner 4451 | -7/Data Miner | Learned location of Section 7 (-2) 4451 | -7/Data Miner | Acquired the access code to Warlord's prototype stash 4473 | -7/Data Miner | Received God Mode back door access code from Data Miner 4505 | -7/Data Miner | Entered Proximity Caves 4508 | -6/Proximity Caves | Spotter reported a threat 4532 | -6/Proximity Caves | Escorted by Enhanced Grunt 4595 | -6/Proximity Caves | Found Prototype Device 4596 | -6/Proximity Caves | Identified Exp. Thermal Shield 4669 | -6/Proximity Caves | Attracted the attention of an 0b10 checkpoint 4742 | -6/Proximity Caves | Discovered new exit (range 13) 4749 | -6/Proximity Caves | Entered Factory 4749 | -6/Factory | Evolved 2 slots: Utility x2 4750 | -6/Factory | Loaded intel: 53 interactive machine locations 5300 | -6/Factory | Identified exit to Lower Caves 5300 | -6/Factory | Identified exit to Extension 5653 | -6/Factory | Entered Extension 5720 | -6/Extension | Rescued a captive Derelict 5720 | -6/Extension | Rescued a captive Derelict 5990 | -6/Extension | Rescued a captive Derelict 6319 | -6/Extension | Rescued a captive Derelict 6341 | -6/Extension | Spotted B-75 Beast 6346 | -6/Extension | Rescued a captive Derelict 6347 | -6/Extension | Rescued a captive Derelict 6607 | -6/Extension | Rescued A7 6635 | -6/Extension | Rescued a captive Derelict 6641 | -6/Extension | Rescued a captive Derelict 6682 | -6/Extension | Rescued a captive Derelict 6683 | -6/Extension | Rescued a captive Derelict 6773 | -6/Extension | Build established: Commander-Construct 6874 | -6/Extension | Discovered new exit (range 10) 6875 | -6/Extension | Discovered new exit (range 6) 6899 | -6/Extension | Entered Cetus 6899 | -6/Cetus | Accompanied by 8 allies (A7) 6904 | -6/Cetus | Acquired a Cetus Manufacturing Module code from A7 6918 | -6/Cetus | Spotted Cetus Guard 6918 | -6/Cetus | Spotted Cetus Guard 6920 | -6/Cetus | Spotted Cetus Guard 6923 | -6/Cetus | Spotted Cetus Guard 6930 | -6/Cetus | Allies destroyed Cetus Guard 6941 | -6/Cetus | Allies destroyed Cetus Guard 6941 | -6/Cetus | Destroyed Cetus Guard 6943 | -6/Cetus | Destroyed Cetus Guard 7043 | -6/Cetus | Extracted ID and sensor layout for unrecognized location from A7's data core 7048 | -6/Cetus | Cetus Manufacturing Module disabled 7116 | -6/Cetus | Failed to start Cetus Manufacturing Module 7128 | -6/Cetus | Discovered new exit (range 21) 7243 | -6/Cetus | Build established: Construct 7293 | -6/Cetus | Entered Archives 7348 | -6/Archives | Discovered new exit (range 13) 7353 | -6/Archives | Discovered new exit (range 22) 7380 | -6/Archives | Entered Hub_04(d) 7396 | -6/Hub_04(d) | Discovered new exit (range 21) 7410 | -6/Hub_04(d) | Lost 3 parts (1p1n1w) 7544 | -6/Hub_04(d) | Incoming investigation squad redirected 7602 | -6/Hub_04(d) | Destroyed 9 combat bots 7733 | -6/Hub_04(d) | Build established: Mutant 7776 | -6/Hub_04(d) | Entered Factory 7776 | -5/Factory | Evolved 2 slots: Power x1, Utility x1 8094 | -5/Factory | Build established: Skirmisher 8426 | -5/Factory | Discovered new exit (range 21) 8581 | -5/Factory | Build established: Construct 8609 | -5/Factory | Identified exit to Upper Caves 8642 | -5/Factory | Entered Upper Caves 9007 | -5/Upper Caves | Found Alien Artifact 9007 | -5/Upper Caves | Identified Dimensional Node Initializer 9007 | -5/Upper Caves | Initialized slip node 9032 | -5/Upper Caves | Learned Factory trap positions 9091 | -5/Upper Caves | Attacked by a delusional Derelict stockpiling parts 9180 | -5/Upper Caves | Learned location of Armory (-4) 9215 | -5/Upper Caves | Discovered new exit (range 10) 9216 | -5/Upper Caves | Encountered a Warlord checkpoint 9220 | -5/Upper Caves | Identified exit to Upper Caves 9220 | -5/Upper Caves | Entered another Upper Caves area 9225 | -5/Upper Caves | Discovered new exit (range 9) 9229 | -5/Upper Caves | Identified exit to Factory 9537 | -5/Upper Caves | Attracted the attention of an 0b10 checkpoint 9653 | -5/Upper Caves | Discovered new exit (range 14) 9659 | -5/Upper Caves | Identified exit to Zhirov 9664 | -5/Upper Caves | Acquired the password to a Derelict Tinkerer's latest research 9676 | -5/Upper Caves | Entered Zhirov 9676 | -5/Zhirov | Discovered new exit (range 3) 9677 | -5/Zhirov | Identified exit to Proximity Caves 9686 | -5/Zhirov | Met Zhirov 9695 | -5/Zhirov | Learned location of Quarantine (-2) 9695 | -5/Zhirov | Learned location of Testing (-3) 9695 | -5/Zhirov | Learned location of Command (-1) 9699 | -5/Zhirov | Zhirov requested help retrieving the SGEMP Prototype 9707 | -5/Zhirov | Found Alien Artifact 9723 | -5/Zhirov | Found Alien Artifact 9723 | -5/Zhirov | Identified Integrated Dissipator 9723 | -5/Zhirov | Installed Integrated Dissipator, increased core heat dissipation (+20) 9789 | -5/Zhirov | Entered Proximity Caves 9960 | -4/Proximity Caves | Learned 4 Research zone layouts 10080 | -4/Proximity Caves | Crushed by falling debris 10088 | -4/Proximity Caves | Attracted the attention of an 0b10 checkpoint 10127 | -4/Proximity Caves | Discovered exit to Factory (range 11) 10133 | -4/Proximity Caves | Entered Factory 10133 | -4/Factory | Evolved 2 slots: Utility x2 10134 | -4/Factory | Loaded intel: 118 trap records 10182 | -4/Factory | Identified exit to Upper Caves 10182 | -4/Factory | Identified exit to Armory 10291 | -4/Factory | Discovered new exit (range 13) 10309 | -4/Factory | Identified exit to Research 10364 | -4/Factory | Entered Upper Caves 10377 | -4/Upper Caves | Learned Research emergency access door positions 10477 | -4/Upper Caves | Encountered a Warlord checkpoint 10541 | -4/Upper Caves | Learned Research stockpile data 10583 | -4/Upper Caves | Discovered new exit (range 9) 10586 | -4/Upper Caves | Identified exit to Upper Caves 10586 | -4/Upper Caves | Entered another Upper Caves area 10703 | -4/Upper Caves | Encountered a Warlord checkpoint 10734 | -4/Upper Caves | Discovered new exit (range 12) 10738 | -4/Upper Caves | Identified exit to Warlord 10738 | -4/Upper Caves | Entered Warlord 10762 | -4/Warlord | Discovered new exit (range 9) 10765 | -4/Warlord | Identified exit to Proximity Caves 10787 | -4/Warlord | System corruption cleaned by Quarantine Array 10932 | -4/Warlord | Met Warlord 10937 | -4/Warlord | Opened Warlord's prototype stash 10941 | -4/Warlord | Warlord's base attacked by MAIN.C 10948 | -4/Warlord | Found Prototype Device 10948 | -4/Warlord | Identified Exp. Phase Shifter 10958 | -4/Warlord | Found Prototype Device 10958 | -4/Warlord | Identified System Purifier 11076 | -4/Warlord | Spotted B-90 Cyclops 11099 | -4/Warlord | Allies destroyed B-90 Cyclops 11135 | -4/Warlord | Build established: Commander-Construct 11242 | -4/Warlord | Spotted Striker 11242 | -4/Warlord | Spotted B-86 Titan 11242 | -4/Warlord | Warlord forces counterattacked 11249 | -4/Warlord | Spotted B-90 Cyclops 11272 | -4/Warlord | Destroyed B-86 Titan 11345 | -4/Warlord | Spotted B-90 Cyclops 11362 | -4/Warlord | Spotted B-86 Titan 11384 | -4/Warlord | Entered Proximity Caves 11387 | -3/Proximity Caves | Spotter reported a threat 11477 | -3/Proximity Caves | Build established: Construct 11554 | -3/Proximity Caves | Spotter reported a threat 12125 | -3/Proximity Caves | Spotted B-86 Titan 12232 | -3/Proximity Caves | Discovered exit to Research (range 12) 12252 | -3/Proximity Caves | Entered Research 12252 | -3/Research | Evolved 2 slots: Utility x2 12253 | -3/Research | Identified exit to Research 12576 | -3/Research | Destroyed 8 combat bots 12636 | -3/Research | Identified Transdimensional Reconstructor 12636 | -3/Research | Warped through subspace 12696 | -3/Research | System corruption reached 10% 12735 | -3/Research | Lost 14 parts (2p4n6u2w) 12787 | -3/Research | Core integrity fell below 50% 12819 | -3/Research | Core integrity fell below 20% 12847 | -3/Research | Spotted B-86 Titan 12861 | -3/Research | Destroyed by H-77 Assassin with Coil Gun Last Messages --------------- 12821_ K-01 Serf destroyed. 12821_ Penetrated by Slug. 12821_ Slug penetrates Door. 12822_ R-10 Processor collects Xenon Bombardment Thruster. 12823_ Acquired 75 matter. 12825_ Acquired Unknown Slashing Weapon. 12838_ U-05 Engineer destroyed. 12838_ K-01 Serf collects debris. 12839_ K-01 Serf cleans the DSF Access. 12841_ System corrupted: Component data lost. 12843_ K-01 Serf cleans the DSF Access. 12847_ R-10 Processor collects Structural Scanner. 12849_ Adv. Reaction Control System destroyed. 12849_ Penetrated by Slug. 12851_ Triggered Alarm Trap. 12851_ An alarm sounds. 12851_ ALERT: Alarm triggered, dispatching investigation squad. 12852_ P-80 Master resets K-01 Serf, system corruption cleaned. 12860_ Identified Power Sword. 12861_ Penetrated by Slug. Map ----- +----------------------------------------------------+ | ??????????????????????????+ ????????????# # | | ??????????????????????????# ?????????????# # | | ??????????????????????????? ???????????# # | | ??????????????????????????? #?????????# =# | | ??????????????????????????? #?????????# %# | | ??????????????????+???????? #?????????# !# | | ??????????????????????????# #?????????# # | | ??????????????????????????# #?????????# # | | ??????????????????????????# #?????????# # | | ??????????????????????????+ #?????????# + | | ??????????????????????????# #?????????# # | | ??????????????????????????# #?????????# # | | ??????????????????????????# #?????????# # | | ??????????????????????????# #?????????# # | | ??????????????????????????# #?????????# # | | ??????????????????????????# #?????????# # | | ?????????????????########## +?????????# # | | ?????????????????# # #?????????# # | | ?????????????????# # #?????????# # | | ?????????????????# """ # #?????????# # | | ?????????????????# "Y" # ########### # | | ?????????????????# " " # # ## # | | ?????????????????# # # ## # | | ?????????????????# s # ## T | | ?????????????????# # # ??# | | ?????????????????# @ # # ????# # | | ?????????????????###s###### ###+####### # | | ???????????????????# | | ???????????????????# | | ???????????????????# | | ???????????????????# """" """ """ | | ???????????????????# ""R"" """ """ | | ???????????????????# "" "" """ """ | | ???????????????????# | | ???????????????????# | | ???????????????????# | | ???????????????????# | | ???????????????????+ h#########+####### | | ???????????????????# #???????????????##### | | ???????????????????# #???????????????????? | | ???????????????????#h #???????????????????? | | ??????????????????? #???????????????????? | | ?????????????????? #???????????????????? | | ?????????????????? ? #????????????+??+???? | | ???????????????????? #???????????????????? | | ????????????????????+####???????????????????? | | ?????????????????????????????+??????????????? | | ????????????????????????????????????????????? | | ????????????????????????????????????????????? | | ????????????????????????????????????????????? | +----------------------------------------------------+ Best States ------------- Heat Dissipation 104 Energy Generation 54 Energy Capacity 420 Matter Stores 300 Matter Capacity 300 Sight Range 22 Robot Scan Range 16 Terrain Scan Density 10 ECM Strength 2 Jamming Range 12 Armor Coverage 450 Resistance: TH 30 Phase Shifting 20 Evasion (%) 92 Targeting Accuracy 12 Recoil Reduction 4 Force Boost 30 Item Schematics ----------------- Combat Drone Bay | -7/Data Miner | Free Lgt. Regenerative Plating | -7/Data Miner | Free Biomechanical Wings | -7/Data Miner | Free Gravity Neutralizer | -7/Data Miner | Free Cld. Plasma Cannon | -7/Data Miner | Free Field Propulsion Drive | -7/Data Miner | Free Imp. Kinecellerator | -7/Data Miner | Free Hyp. Coil Gun | -7/Data Miner | Free Hvy. Machine Gun | -7/Data Miner | Free Imp. Remote Shield | -7/Data Miner | Free Assault Drone Bay | -5/Zhirov | Free Exp. Heat Sink | -5/Zhirov | Free Exp. Optical Array | -5/Zhirov | Free Imp. Arc Thrower | -5/Zhirov | Free Robot Schematics ------------------ R-10 Processor | -7/Data Miner | Free G-47 Trooper | -7/Data Miner | Free X-57 Shotgunner | -7/Data Miner | Free A-15 Conveyor | -7/Data Miner | Free G-50 Soldier | -7/Data Miner | Free Fabricated ------------ Nothing Alien Tech Used ----------------- Dimensional Node Initializer Integrated Dissipator Transdimensional Reconstructor Achievements -------------- Sniper Challenges ------------ None Game ------ Seed ScrapNuclearDoomcannon Manual? 0 Play Time 02:57:49 Cumulative 175.0 hours Start 2023.04.05 @ 14:06:43 End 2023.04.05 @ 19:23:27 Sessions 7 Manual Loads 0 Difficulty Rogue Special Mode None Game No. 152 Rogue 152 Adventurer 0 Explorer 0 Win Type - Total 6 Types 4/0/1/1/0/0/0/0/0 Lore% 79 Gallery% 66 Achievement% 57 Wizard Run 0 Options --------- ASCII 0 Keyboard 0 Movement Numpad Keybinds 0 Fullscreen 2 Font 18/Smallcaps Map View 76x50 Tactical HUD 1 Map Filters NONE Filters NONE Steam 1 RUN: 043285bf-58fe-4769-a440-03b02573cbc6